fUST/lending_fUST_20251007
["ID","MTS","AMOUNT","RATE_DAILY","PERIOD"]
[389753080,1759830650516,-867.11,0.00019452,2]
[389753081,1759830650526,-500.0,0.00019452,2]
[389753082,1759830650535,-500.0,0.00019452,2]
[389753083,1759830650545,-500.0,0.00019452,2]
[389753084,1759830650555,-500.0,0.00019452,2]
[389753085,1759830650565,-500.0,0.00019452,2]
[389753086,1759830650574,-632.14,0.00019452,2]
[389753087,1759830650585,-500.0,0.00019452,2]
[389753088,1759830650595,-500.0,0.00019452,2]
[389753089,1759830650605,-500.0,0.00019452,2]
[389753090,1759830650615,-1000.0,0.00019452,2]
[389753091,1759830650625,-500.0,0.00019452,2]
[389753092,1759830650635,-534.39,0.00019452,2]
[389753093,1759830650644,-500.0,0.00019452,2]
[389753094,1759830650654,-500.0,0.00019452,2]
[389753095,1759830650664,-500.0,0.00019452,2]
[389753096,1759830650674,-584.91,0.00019452,2]
[389753097,1759830650683,-500.0,0.00019452,2]
[389753098,1759830650693,-500.0,0.00019452,2]
[389753099,1759830650703,-500.0,0.00019452,2]
[389753100,1759830650713,-504.44,0.00019452,2]
[389753101,1759830650722,-500.0,0.00019452,2]
[389753102,1759830650732,-223.0803253,0.00019452,2]
[389753103,1759830650742,-500.0,0.00019452,2]
[389753104,1759830650751,-933.74,0.00019452,2]
[389753105,1759830650760,-500.0,0.00019452,2]
[389753106,1759830650771,-500.0,0.00019452,2]
[389753107,1759830650781,-500.0,0.00019452,2]
[389753108,1759830650791,-500.0,0.00019452,2]
[389753109,1759830650802,-500.0,0.00019452,2]
[389753110,1759830650811,-500.0,0.00019452,2]
[389753111,1759830650822,-636.52,0.00019452,2]
[389753112,1759830650833,-321.69855151,0.00019452,2]
[389753113,1759830650843,-500.0,0.00019452,2]
[389753114,1759830650853,-500.0,0.00019452,2]
[389753115,1759830650862,-636.49,0.00019452,2]
[389753116,1759830650872,-500.0,0.00019452,2]
[389753117,1759830650882,-500.0,0.00019452,2]
[389753118,1759830650892,-610.77,0.00019452,2]
[389753119,1759830650902,-500.0,0.00019452,2]
[389753120,1759830650911,-500.0,0.00019452,2]
[389753121,1759830650922,-500.0,0.00019452,2]
[389753122,1759830650931,-500.0,0.00019452,2]
[389753123,1759830650941,-500.0,0.00019452,2]
[389753124,1759830650951,-500.0,0.00019452,2]
[389753125,1759830650961,-230.31366757,0.00019452,2]
[389753126,1759830650970,-500.0,0.00019452,2]
[389753127,1759830650980,-500.0,0.00019452,2]
[389753128,1759830650995,-256.81672841,0.00019452,2]
[389753129,1759830651005,-500.0,0.00019452,2]
[389753130,1759830651014,-500.0,0.00019452,2]
[389753131,1759830651024,-500.0,0.00019452,2]
[389753132,1759830651034,-500.0,0.00019452,2]
[389753133,1759830651044,-2480.61,0.00019452,2]
[389753134,1759830651054,-500.0,0.00019452,2]
[389753135,1759830651064,-1036.2,0.00019452,2]
[389753136,1759830651074,-1491.89,0.00019452,2]
[389753137,1759830651084,-500.0,0.00019452,2]
[389753138,1759830651095,-500.0,0.00019452,2]
[389753139,1759830651105,-1594.9,0.00019452,2]
[389753140,1759830651116,-809.71,0.00019452,2]
[389753141,1759830651127,-558.27,0.00019452,2]
[389753142,1759830651137,-500.0,0.00019452,2]
[389753143,1759830651149,-500.0,0.00019452,2]
[389753144,1759830651159,-500.0,0.00019452,2]
[389753145,1759830651169,-500.0,0.00019452,2]
[389753146,1759830651179,-500.0,0.00019452,2]
[389753147,1759830651189,-500.0,0.00019452,2]
[389753148,1759830651199,-1227.32,0.00019452,2]
[389753149,1759830651210,-500.0,0.00019452,2]
[389753150,1759830651219,-1000.0,0.00019452,2]
[389753151,1759830651230,-500.0,0.00019452,2]
[389753152,1759830651239,-500.0,0.00019452,2]
[389753153,1759830651248,-691.19,0.00019452,2]
[389753154,1759830651258,-500.0,0.00019452,2]
[389753155,1759830651268,-500.0,0.00019452,2]
[389753156,1759830651279,-647.51,0.00019452,2]
[389753157,1759830651289,-500.0,0.00019452,2]
[389753158,1759830651298,-500.0,0.00019452,2]
[389753159,1759830651308,-500.0,0.00019452,2]
[389753160,1759830651317,-500.0,0.00019452,2]
[389753161,1759830651327,-500.0,0.00019452,2]
[389753162,1759830651336,-500.0,0.00019452,2]
[389753163,1759830651346,-693.53,0.00019452,2]
[389753164,1759830651356,-508.64,0.00019452,2]
[389753165,1759830651365,-500.0,0.00019452,2]
[389753166,1759830651377,-500.0,0.00019452,2]
[389753167,1759830651388,-630.0,0.00019452,2]
[389753168,1759830651398,-500.0,0.00019452,2]
[389753169,1759830651408,-500.0,0.00019452,2]
[389753170,1759830651418,-500.0,0.00019452,2]
[389753171,1759830651429,-500.0,0.00019452,2]
[389753172,1759830651438,-500.0,0.00019452,2]
[389753173,1759830651448,-500.0,0.00019452,2]
[389753174,1759830651459,-500.0,0.00019452,2]
[389753175,1759830651469,-500.0,0.00019452,2]
[389753176,1759830651479,-500.0,0.00019452,2]
[389753177,1759830651489,-500.0,0.00019452,2]
[389753178,1759830651498,-500.0,0.00019452,2]
[389753179,1759830651508,-500.0,0.00019452,2]
[389753180,1759830651517,-500.0,0.00019452,2]
[389753181,1759830651527,-500.0,0.00019452,2]
[389753182,1759830651537,-500.0,0.00019452,2]
[389753183,1759830651547,-670.87,0.00019452,2]
[389753184,1759830651557,-500.0,0.00019452,2]
[389753185,1759830651566,-500.0,0.00019452,2]
[389753186,1759830651577,-500.0,0.00019452,2]
[389753187,1759830651587,-500.0,0.00019452,2]
[389753188,1759830651596,-547.09,0.00019452,2]
[389753189,1759830651606,-2327.57,0.00019452,2]
[389753190,1759830651616,-890.35,0.00019452,2]
[389753191,1759830651627,-764.51,0.00019452,2]
[389753192,1759830651636,-500.0,0.00019452,2]
[389753193,1759830651646,-500.0,0.00019452,2]
[389753194,1759830651656,-1909.27,0.00019452,2]
[389753195,1759830651666,-500.0,0.00019452,2]
[389753196,1759830651675,-500.0,0.00019452,2]
[389753197,1759830651685,-500.0,0.00019452,2]
[389753198,1759830651694,-500.0,0.00019452,2]
[389753199,1759830651704,-500.0,0.00019452,2]
[389753200,1759830651714,-1142.35,0.00019452,2]
[389753201,1759830651723,-500.0,0.00019452,2]
[389753202,1759830651733,-500.0,0.00019452,2]
[389753203,1759830651743,-500.0,0.00019452,2]
[389753204,1759830651752,-500.0,0.00019452,2]
[389753205,1759830651762,-500.0,0.00019452,2]
[389753206,1759830651771,-500.0,0.00019452,2]
[389753207,1759830651781,-500.0,0.00019452,2]
[389753208,1759830651790,-312.02177621,0.00019452,2]
[389753209,1759830651800,-500.0,0.00019452,2]
[389753210,1759830651810,-500.0,0.00019452,2]
[389753211,1759830651820,-500.0,0.00019452,2]
[389753212,1759830651830,-500.0,0.00019452,2]
[389753213,1759830651839,-500.0,0.00019452,2]
[389753214,1759830651849,-2104.17,0.00019452,2]
[389753215,1759830651859,-500.0,0.00019452,2]
[389753216,1759830651869,-1095.44,0.00019452,2]
[389753217,1759830651879,-500.0,0.00019452,2]
[389753218,1759830651890,-500.0,0.00019452,2]
[389753219,1759830651901,-539.34,0.00019452,2]
[389753220,1759830651911,-500.0,0.00019452,2]
[389753221,1759830651921,-941.34,0.00019452,2]
[389753222,1759830651931,-1015.39,0.00019452,2]
[389753223,1759830651941,-500.0,0.00019452,2]
[389753224,1759830651951,-500.0,0.00019452,2]
[389753225,1759830651960,-500.0,0.00019452,2]
[389753226,1759830651970,-933.45,0.00019452,2]
[389753227,1759830651980,-500.0,0.00019452,2]
[389753228,1759830651992,-500.0,0.00019452,2]
[389753229,1759830652002,-500.0,0.00019452,2]
[389753230,1759830652012,-500.0,0.00019452,2]
[389753231,1759830652023,-500.0,0.00019452,2]
[389753232,1759830652034,-500.0,0.00019452,2]
[389753233,1759830652045,-500.0,0.00019452,2]
[389753234,1759830652055,-500.0,0.00019452,2]
[389753235,1759830652068,-500.0,0.00019452,2]
[389753236,1759830652077,-500.0,0.00019452,2]
[389753237,1759830652087,-682.01,0.00019452,2]
[389753238,1759830652096,-500.0,0.00019452,2]
[389753239,1759830652300,-2708.44,0.00019452,2]
[389753240,1759830652310,-617.34981999,0.00019452,2]
[389753241,1759830652319,-514.76,0.00019452,2]
[389753242,1759830652329,-500.0,0.00019452,2]
[389753243,1759830652339,-823.11,0.00019452,2]
[389753244,1759830652348,-500.0,0.00019452,2]
[389753245,1759830652358,-518.62,0.00019452,2]
[389753246,1759830652368,-500.0,0.00019452,2]
[389753247,1759830652378,-500.0,0.00019452,2]
[389753248,1759830652389,-384.06086854,0.00019452,2]
[389753249,1759830652398,-500.0,0.00019452,2]
[389753250,1759830652407,-500.0,0.00019452,2]
[389753251,1759830652417,-500.0,0.00019452,2]
[389753252,1759830652427,-500.0,0.00019452,2]
[389753253,1759830652436,-500.0,0.00019452,2]
[389753254,1759830652445,-505.58090592,0.00019452,2]
[389753255,1759830652455,-500.0,0.00019452,2]
[389753256,1759830652464,-532.93,0.00019452,2]
[389753257,1759830652474,-500.0,0.00019452,2]
[389753258,1759830652484,-500.0,0.00019452,2]
[389753259,1759830652494,-521.18,0.00019452,2]
[389753260,1759830652504,-422.02260603,0.00019452,2]
[389753261,1759830652513,-500.0,0.00019452,2]
[389753262,1759830652523,-500.0,0.00019452,2]
[389753263,1759830652533,-500.0,0.00019452,2]
[389753264,1759830652543,-500.0,0.00019452,2]
[389753265,1759830652553,-3971.01,0.00019452,2]
[389753266,1759830652562,-500.0,0.00019452,2]
[389753267,1759830652572,-500.0,0.00019452,2]
[389753268,1759830652582,-603.83,0.00019452,2]
[389753269,1759830652591,-500.0,0.00019452,2]
[389753270,1759830652601,-512.4,0.00019452,2]
[389753271,1759830652611,-500.0,0.00019452,2]
[389753272,1759830652620,-7939.38,0.00019452,2]
[389753273,1759830652630,-500.0,0.00019452,2]
[389753274,1759830652640,-1497.94,0.00019452,2]
[389753275,1759830652649,-500.0,0.00019452,2]
[389753276,1759830652658,-528.55,0.00019452,2]
[389753277,1759830652668,-500.0,0.00019452,2]
[389753278,1759830652678,-354.19768995,0.00019452,2]
[389753279,1759830652687,-981.75,0.00019452,2]
[389753280,1759830652697,-500.0,0.00019452,2]
[389753281,1759830652707,-500.0,0.00019452,2]
[389753282,1759830652716,-500.0,0.00019452,2]
[389753283,1759830652726,-500.0,0.00019452,2]
[389753284,1759830652735,-500.0,0.00019452,2]
[389753285,1759830652744,-500.0,0.00019452,2]
[389753286,1759830652754,-500.0,0.00019452,2]
[389753287,1759830652763,-500.0,0.00019452,2]
[389753288,1759830652773,-4357.87,0.00019452,2]
[389753289,1759830652782,-500.0,0.00019452,2]
[389753290,1759830652791,-2417.7,0.00019452,2]
[389753291,1759830652801,-500.0,0.00019452,2]
[389753292,1759830652810,-500.0,0.00019452,2]
[389753293,1759830652820,-589.8,0.00019452,2]
[389753294,1759830652829,-500.0,0.00019452,2]
[389753295,1759830652839,-500.0,0.00019452,2]
[389753296,1759830652849,-500.0,0.00019452,2]
[389753297,1759830652858,-500.0,0.00019452,2]
[389753298,1759830652868,-1747.59,0.00019452,2]
[389753299,1759830652878,-500.0,0.00019452,2]
[389753300,1759830652888,-500.0,0.00019452,2]
[389753301,1759830652897,-500.0,0.00019452,2]
[389753302,1759830652907,-805.8,0.00019452,2]
[389753303,1759830652917,-778.31,0.00019452,2]
[389753304,1759830652926,-500.0,0.00019452,2]
[389753305,1759830652936,-2349.56,0.00019452,2]
[389753306,1759830652945,-500.0,0.00019452,2]
[389753307,1759830652955,-500.0,0.00019452,2]
[389753308,1759830652964,-2678.99,0.00019452,2]
[389753309,1759830652973,-500.0,0.00019452,2]
[389753310,1759830652983,-500.0,0.00019452,2]
[389753311,1759830652997,-479.05937984,0.00019452,2]
[389753312,1759830653006,-500.0,0.00019452,2]
[389753313,1759830653016,-500.0,0.00019452,2]
[389753314,1759830653026,-500.0,0.00019452,2]
[389753315,1759830653036,-500.0,0.00019452,2]
[389753316,1759830653048,-500.0,0.00019452,2]
[389753317,1759830653057,-500.0,0.00019452,2]
[389753318,1759830653067,-500.0,0.00019452,2]
[389753319,1759830653078,-500.0,0.00019452,2]
[389753320,1759830653088,-9882.17,0.00019452,2]
[389753321,1759830653098,-500.0,0.00019452,2]
[389753322,1759830653108,-500.0,0.00019452,2]
[389753323,1759830653117,-500.0,0.00019452,2]
[389753324,1759830653127,-500.0,0.00019452,2]
[389753325,1759830653137,-509.76,0.00019452,2]
[389753326,1759830653146,-500.0,0.00019452,2]
[389753327,1759830653156,-6349.36,0.00019452,2]
[389753328,1759830653166,-500.0,0.00019452,2]
[389753329,1759830653176,-500.0,0.00019452,2]
[389753330,1759830653186,-500.0,0.00019452,2]
[389753331,1759830653196,-321.80490177,0.00019452,2]
[389753332,1759830653206,-2334.81,0.00019452,2]
[389753333,1759830653216,-2922.87,0.00019452,2]
[389753334,1759830653225,-500.0,0.00019452,2]
[389753335,1759830653235,-500.0,0.00019452,2]
[389753336,1759830653244,-3281.84,0.00019452,2]
[389753337,1759830653254,-500.0,0.00019452,2]
[389753338,1759830653263,-500.0,0.00019452,2]
[389753339,1759830653273,-500.0,0.00019452,2]
[389753340,1759830653283,-500.0,0.00019452,2]
[389753341,1759830653292,-3690.21,0.00019452,2]
[389753342,1759830653301,-500.0,0.00019452,2]
[389753343,1759830653311,-500.0,0.00019452,2]
[389753344,1759830653320,-6025.0,0.00019452,2]
[389753345,1759830653331,-500.0,0.00019452,2]
[389753346,1759830653340,-500.0,0.00019452,2]
[389753347,1759830653350,-500.0,0.00019452,2]
[389753348,1759830653361,-500.0,0.00019452,2]
[389753349,1759830653371,-4778.74,0.00019452,2]
[389753350,1759830653380,-580.63,0.00019452,2]
[389753351,1759830653390,-500.0,0.00019452,2]
[389753352,1759830653400,-833.31,0.00019452,2]
[389753353,1759830653409,-500.0,0.00019452,2]
[389753354,1759830653419,-500.0,0.00019452,2]
[389753355,1759830653429,-500.0,0.00019452,2]
[389753356,1759830653439,-716.06,0.00019452,2]
[389753357,1759830653449,-500.0,0.00019452,2]
[389753358,1759830653460,-500.0,0.00019452,2]
[389753359,1759830653470,-624.27,0.00019452,2]
[389753360,1759830653479,-500.0,0.00019452,2]
[389753361,1759830653489,-500.0,0.00019452,2]
[389753362,1759830653498,-1489.09,0.00019452,2]
[389753363,1759830653508,-500.0,0.00019452,2]
[389753364,1759830653518,-778.39,0.00019452,2]
[389753365,1759830653527,-72.36893023,0.00019452,2]
[389753366,1759830653862,-427.63106977,0.00019452,2]
[389753367,1759830653872,-68.93265679,0.00019452,2]
[389753368,1759830653884,-431.06734321,0.00019452,2]
[389753369,1759830653895,-500.0,0.00019452,2]
[389753370,1759830653906,-500.0,0.00019452,2]
[389753371,1759830653917,-500.0,0.00019452,2]
[389753372,1759830653926,-500.0,0.00019452,2]
[389753373,1759830653936,-500.0,0.00019452,2]
[389753374,1759830653946,-339.26102108,0.00019452,2]
[389753375,1759830653969,-500.0,0.00019178,2]
[389753376,1759830653979,-355.23897892,0.00019452,2]
[389753377,1759830653994,-500.0,0.00019452,2]
[389753378,1759830654004,-1766.14,0.00019452,2]
[389753379,1759830654013,-500.0,0.00019452,2]
[389753380,1759830654023,-500.0,0.00019452,2]
[389753381,1759830654035,-500.0,0.00019452,2]
[389753382,1759830654044,-500.0,0.00019452,2]
[389753383,1759830654054,-595.54,0.00019452,2]
[389753384,1759830654066,-500.0,0.00019452,2]
[389753385,1759830654075,-500.0,0.00019452,2]
[389753386,1759830654085,-500.0,0.00019452,2]
[389753387,1759830654094,-725.78,0.00019452,2]
[389753388,1759830654104,-500.0,0.00019452,2]
[389753389,1759830654114,-500.0,0.00019452,2]
[389753390,1759830654124,-500.0,0.00019452,2]
[389753391,1759830654134,-594.7,0.00019452,2]
[389753392,1759830654143,-547.18,0.00019452,2]
[389753393,1759830654154,-810.69,0.00019452,2]
[389753394,1759830654164,-1379.62,0.00019452,2]
[389753395,1759830654175,-500.0,0.00019452,2]
[389753396,1759830654185,-500.0,0.00019452,2]
[389753397,1759830654196,-500.0,0.00019452,2]
[389753398,1759830654206,-621.15,0.00019452,2]
[389753399,1759830654221,-575.28,0.00019452,2]
[389753400,1759830654235,-500.0,0.00019452,2]
[389753401,1759830654250,-1945.28,0.00019452,2]
[389753402,1759830654264,-2410.24,0.00019452,2]
[389753403,1759830654275,-796.91,0.00019452,2]
[389753404,1759830654287,-500.0,0.00019452,2]
[389753405,1759830654301,-500.0,0.00019452,2]
[389753406,1759830654315,-500.0,0.00019452,2]
[389753407,1759830654328,-4750.34,0.00019452,2]
[389753408,1759830654342,-5780.6,0.00019452,2]
[389753409,1759830654356,-500.0,0.00019452,2]
[389753410,1759830654369,-500.0,0.00019452,2]
[389753411,1759830654383,-946.32,0.00019452,2]
[389753412,1759830654398,-219.77710529,0.00019452,2]
[389753413,1759830654411,-500.0,0.00019452,2]
[389753414,1759830654426,-588.52,0.00019452,2]
[389753415,1759830654438,-500.0,0.00019452,2]
[389753416,1759830654450,-1212.56,0.00019452,2]
[389753417,1759830654462,-1219.47,0.00019452,2]
[389753418,1759830654475,-571.3,0.00019452,2]
[389753419,1759830654489,-2273.47,0.00019452,2]
[389753420,1759830654501,-500.0,0.00019452,2]
[389753421,1759830654515,-500.0,0.00019452,2]
[389753422,1759830654526,-500.0,0.00019452,2]
[389753423,1759830654537,-1979.21,0.00019452,2]
[389753424,1759830654549,-500.0,0.00019452,2]
[389753425,1759830654560,-500.0,0.00019452,2]
[389753426,1759830654572,-500.0,0.00019452,2]
[389753427,1759830654585,-500.0,0.00019452,2]
[389753428,1759830654597,-1972.96,0.00019452,2]
[389753429,1759830654610,-500.0,0.00019452,2]
[389753430,1759830654624,-2275.68,0.00019452,2]
[389753431,1759830654637,-500.0,0.00019452,2]
[389753432,1759830654650,-500.0,0.00019452,2]
[389753433,1759830654664,-500.0,0.00019452,2]
[389753434,1759830654676,-500.0,0.00019452,2]
[389753435,1759830654687,-2074.32,0.00019452,2]
[389753436,1759830654697,-500.0,0.00019452,2]
[389753437,1759830654707,-500.0,0.00019452,2]
[389753438,1759830654718,-500.0,0.00019452,2]
[389753439,1759830654731,-500.0,0.00019452,2]
[389753440,1759830654745,-500.0,0.00019452,2]
[389753441,1759830654758,-1067.64,0.00019452,2]
[389753442,1759830654768,-1418.61,0.00019452,2]
[389753443,1759830654780,-500.0,0.00019452,2]
[389753444,1759830654791,-500.0,0.00019452,2]
[389753445,1759830654803,-500.0,0.00019452,2]
[389753446,1759830654815,-500.0,0.00019452,2]
[389753447,1759830654826,-1522.11,0.00019452,2]
[389753448,1759830654836,-500.0,0.00019452,2]
[389753449,1759830654847,-608.69,0.00019452,2]
[389753450,1759830654857,-500.0,0.00019452,2]
[389753451,1759830654869,-2260.6000596,0.00019452,2]
[389753452,1759830654887,-2454.4199404,0.00019452,2]
[389753453,1759830654898,-500.0,0.00019452,2]
[389753454,1759830654909,-500.0,0.00019452,2]
[389753455,1759830654921,-633.18,0.00019452,2]
[389753456,1759830654932,-500.0,0.00019452,2]
[389753457,1759830654943,-500.0,0.00019452,2]
[389753458,1759830654953,-1735.07,0.00019452,2]
[389753459,1759830654963,-500.0,0.00019452,2]
[389753460,1759830654975,-500.0,0.00019452,2]
[389753461,1759830654988,-500.0,0.00019452,2]
[389753462,1759830654999,-500.0,0.00019452,2]
[389753463,1759830655012,-500.0,0.00019452,2]
[389753464,1759830655023,-500.01770107,0.00019452,2]
[389753465,1759830655035,-5017.62,0.00019452,2]
[389753466,1759830655046,-500.0,0.00019452,2]
[389753467,1759830655057,-668.86796417,0.00019452,2]
[389753468,1759830655071,-1232.84203583,0.00019452,2]
[389753469,1759830655082,-500.0,0.00019452,2]
[389753470,1759830655093,-646.49,0.00019452,2]
[389753471,1759830655104,-500.0,0.00019452,2]
[389753472,1759830655115,-2499.35190565,0.00019452,2]
[389753473,1759830655129,-453.27809435,0.00019452,2]
[389753474,1759830655140,-500.0,0.00019452,2]
[389753475,1759830655153,-500.0,0.00019452,2]
[389753476,1759830655164,-982.64,0.00019452,2]
[389753477,1759830655175,-755.52,0.00019452,2]
[389753478,1759830655186,-500.0,0.00019452,2]
[389753479,1759830655197,-500.0,0.00019452,2]
[389753480,1759830655209,-1663.83,0.00019452,2]
[389753481,1759830655220,-500.0,0.00019452,2]
[389753482,1759830655231,-500.0,0.00019452,2]
[389753483,1759830655242,-500.95,0.00019452,2]
[389753484,1759830655253,-500.0,0.00019452,2]
[389753485,1759830655265,-500.0,0.00019452,2]
[389753486,1759830655277,-204.47168397,0.00019452,2]
[389753487,1759830655292,-151.18433092,0.00019452,2]
[389753488,1759830655304,-500.0,0.00019452,2]
[389753489,1759830655316,-500.0,0.00019452,2]
[389753490,1759830655328,-92.81566908,0.00019452,2]
[389753491,1759830655341,-407.18433092,0.00019452,2]
[389753492,1759830655353,-500.0,0.00019452,2]
[389753493,1759830655364,-1743.84,0.00019452,2]
[389753494,1759830655376,-500.0,0.00019452,2]
[389753495,1759830655387,-1066.23060267,0.00019452,2]
[389753496,1759830655933,-4291.26955806,0.00017878,2]
[389753497,1759830656179,-0.01951582,0.00017878,2]
[389753498,1759830656394,-2648.6001,0.00017878,2]
[389753499,1759830657263,-15667.01414316,0.00017878,2]
[389753500,1759830657274,-411.0,0.00018908,2]
[389753501,1759830657283,-347.51168809,0.00019178,2]
[389753502,1759830657293,-863.16057758,0.00019452,2]
[389753503,1759830657314,-11232.07881975,0.00019452,2]
[389753504,1759830657323,-543.3,0.00019452,2]
[389753505,1759830657333,-500.0,0.00019452,2]
[389753506,1759830657342,-869.58,0.00019452,2]
[389753507,1759830657351,-500.0,0.00019452,2]
[389753508,1759830657361,-500.0,0.00019452,2]
[389753509,1759830657370,-500.0,0.00019452,2]
[389753510,1759830657380,-500.0,0.00019452,2]
[389753511,1759830657391,-500.0,0.00019452,2]
[389753512,1759830657400,-1253.64,0.00019452,2]
[389753513,1759830657410,-2728.32,0.00019452,2]
[389753514,1759830657419,-500.0,0.00019452,2]
[389753515,1759830657429,-3610.46,0.00019452,2]
[389753516,1759830657439,-647.17,0.00019452,2]
[389753517,1759830657448,-500.0,0.00019452,2]
[389753518,1759830657458,-500.0,0.00019452,2]
[389753519,1759830657468,-500.0,0.00019452,2]
[389753520,1759830657477,-500.0,0.00019452,2]
[389753521,1759830657487,-372.44938189,0.00019452,2]
[389753522,1759830657497,-500.0,0.00019452,2]
[389753523,1759830657507,-500.0,0.00019452,2]
[389753524,1759830657517,-500.0,0.00019452,2]
[389753525,1759830657527,-500.0,0.00019452,2]
[389753526,1759830657536,-500.0,0.00019452,2]
[389753527,1759830657546,-500.0,0.00019452,2]
[389753528,1759830657555,-733.49,0.00019452,2]
[389753529,1759830657565,-608.17952336,0.00019452,2]
[389753530,1759830657577,-57.37047664,0.00019452,2]
[389753531,1759830657587,-438.40069281,0.00019452,2]
[389753532,1759830657596,-1195.11,0.00019452,2]
[389753533,1759830657605,-873.58,0.00019452,2]
[389753534,1759830657615,-500.0,0.00019452,2]
[389753535,1759830657625,-500.0,0.00019452,2]
[389753536,1759830657635,-421.31402014,0.00019452,2]
[389753537,1759830657645,-500.0,0.00019452,2]
[389753538,1759830657655,-927.95,0.00019452,2]
[389753539,1759830657664,-500.0,0.00019452,2]
[389753540,1759830657673,-500.0,0.00019452,2]
[389753541,1759830657683,-3970.51,0.00019452,2]
[389753542,1759830657693,-500.0,0.00019452,2]
[389753543,1759830657702,-500.0,0.00019452,2]
[389753544,1759830657711,-1037.12,0.00019452,2]
[389753545,1759830657720,-1028.65,0.00019452,2]
[389753546,1759830657729,-500.0,0.00019452,2]
[389753547,1759830657739,-500.0,0.00019452,2]
[389753548,1759830657748,-500.0,0.00019452,2]
[389753549,1759830657758,-500.0,0.00019452,2]
[389753550,1759830657767,-500.0,0.00019452,2]
[389753551,1759830657777,-500.0,0.00019452,2]
[389753552,1759830657786,-5459.5,0.00019452,2]
[389753553,1759830657795,-500.0,0.00019452,2]
[389753554,1759830657805,-500.0,0.00019452,2]
[389753555,1759830657814,-500.0,0.00019452,2]
[389753556,1759830657823,-500.0,0.00019452,2]
[389753557,1759830657832,-500.0,0.00019452,2]
[389753558,1759830657841,-4906.60166403,0.00019452,2]
[389753559,1759830657850,-3000.0,0.0001946,2]
[389753560,1759830657859,-220.55340284,0.00019462,2]
[389753561,1759830657868,-25.33162058,0.0001947,2]
[389753562,1759830657880,-2974.66837942,0.0001947,2]
[389753563,1759830657890,-375.09147052,0.00019473,2]
[389753564,1759830657899,-501.03686346,0.00019473,2]
[389753565,1759830657909,-500.69316921,0.00019473,2]
[389753566,1759830657917,-626.82541977,0.00019473,2]
[389753567,1759830657926,-500.0,0.00019473,2]
[389753568,1759830657935,-500.0,0.00019473,2]
[389753569,1759830657944,-500.0,0.00019473,2]
[389753570,1759830657954,-439.38329265,0.00019473,2]
[389753571,1759830657963,-458.04175462,0.00019473,2]
[389753572,1759830657978,-42.2035875,0.00019473,2]
[389753573,1759830657991,-214.99073653,0.00019473,2]
[389753574,1759830658000,-165.15738971,0.00019473,2]
[389753575,1759830658010,-500.0,0.00019473,2]
[389753576,1759830658020,-94.22788899,0.00019473,2]
[389753577,1759830658687,-500.0,0.00019178,2]
[389753578,1759830658697,-406.67748626,0.00019473,2]
[389753579,1759830658706,-500.0,0.00019473,2]